[Event "Titled Tuesday Blitz May 24 Early 2022"]
[White "Izzat, Kanan"]
[Black "Estrada Nieto, Julian"]
[WhiteFideId "13405209"]
[BlackFideId "5101018"]
[WhiteElo "2362"]
[BlackElo "2252"]
[Result "1-0"]
[Round "02"]
[TimeControl "180+1"]
[Date "2022.05.25"]
[WhiteClock "0:02:04"]
[BlackClock "0:00:38"]

1. e4 {[%clk 0:03:00]}  e5 {[%clk 0:02:59]} 2. Nf3 {[%clk 0:02:59]}  Nc6 {[%clk 0:02:59]} 3. d4 {[%clk 0:02:59]}  exd4 {[%clk 0:02:58]} 4. Nxd4 {[%clk 0:03:00]}  Nf6 {[%clk 0:02:58]} 5. Nxc6 {[%clk 0:02:59]}  bxc6 {[%clk 0:02:59]} 6. Bd3 {[%clk 0:03:00]}  d5 {[%clk 0:02:57]} 7. exd5 {[%clk 0:03:00]}  cxd5 {[%clk 0:02:56]} 8. O-O {[%clk 0:03:00]}  Be7 {[%clk 0:02:55]} 9. Nd2 {[%clk 0:03:00]}  O-O {[%clk 0:02:55]} 10. h3 {[%clk 0:02:59]}  c5 {[%clk 0:02:53]} 11. b3 {[%clk 0:02:59]}  Bb7 {[%clk 0:02:52]} 12. Bb2 {[%clk 0:02:59]}  Re8 {[%clk 0:02:38]} 13. Re1 {[%clk 0:02:56]}  Bd6 {[%clk 0:02:24]} 14. Rxe8+ {[%clk 0:02:56]}  Nxe8 {[%clk 0:02:16]} 15. Qg4 {[%clk 0:02:49]}  Nf6 {[%clk 0:02:09]} 16. Qh4 {[%clk 0:02:44]}  h6 {[%clk 0:02:07]} 17. Re1 {[%clk 0:02:39]}  d4 {[%clk 0:02:01]} 18. Nc4 {[%clk 0:02:36]}  Bc7 {[%clk 0:01:59]} 19. Bc1 {[%clk 0:02:34]}  Qd5 {[%clk 0:01:55]} 20. f3 {[%clk 0:02:26]}  Qh5 {[%clk 0:01:11]} 21. Qxh5 {[%clk 0:02:24]}  Nxh5 {[%clk 0:01:11]} 22. Re7 {[%clk 0:02:24]}  Bg3 {[%clk 0:00:49]} 23. Rxb7 {[%clk 0:02:21]}  Re8 {[%clk 0:00:49]} 24. Bd2 {[%clk 0:02:19]}  g6 {[%clk 0:00:49]} 25. Rxa7 {[%clk 0:02:14]}  Nf4 {[%clk 0:00:48]} 26. Kf1 {[%clk 0:02:10]}  Nd5 {[%clk 0:00:43]} 27. a4 {[%clk 0:02:08]}  Bf4 {[%clk 0:00:38]} 28. Bxf4 {[%clk 0:02:05]}  Nxf4 {[%clk 0:00:38]} 29. a5 {[%clk 0:02:04]} 1-0


[Site "https://www.chess.com"]

[Event "Titled Tuesday Blitz May 24 Early 2022"]
[White "Kamsky, Gata"]
[Black "Jakubowski, Krzysztof"]
[WhiteFideId "2000024"]
[BlackFideId "1112848"]
[WhiteElo "2645"]
[BlackElo "2365"]
[Result "1-0"]
[Round "02"]
[TimeControl "180+1"]
[Date "2022.05.24"]
[WhiteClock "0:01:04"]
[BlackClock "0:00:11"]

1. e4 {[%clk 0:03:00]}  c5 {[%clk 0:02:58]} 2. Nf3 {[%clk 0:03:00]}  e6 {[%clk 0:02:57]} 3. Nc3 {[%clk 0:02:57]}  a6 {[%clk 0:02:56]} 4. d4 {[%clk 0:02:55]}  cxd4 {[%clk 0:02:56]} 5. Nxd4 {[%clk 0:02:56]}  b5 {[%clk 0:02:55]} 6. Bd3 {[%clk 0:02:53]}  Bb7 {[%clk 0:02:53]} 7. O-O {[%clk 0:02:50]}  Ne7 {[%clk 0:02:38]} 8. Kh1 {[%clk 0:02:36]}  Nec6 {[%clk 0:02:37]} 9. Nb3 {[%clk 0:02:33]}  d6 {[%clk 0:02:34]} 10. f4 {[%clk 0:02:32]}  b4 {[%clk 0:02:27]} 11. Ne2 {[%clk 0:02:22]}  Nd7 {[%clk 0:02:25]} 12. f5 {[%clk 0:02:21]}  e5 {[%clk 0:02:13]} 13. c4 {[%clk 0:02:10]}  h5 {[%clk 0:02:00]} 14. Be3 {[%clk 0:02:06]}  h4 {[%clk 0:01:58]} 15. h3 {[%clk 0:02:06]}  Be7 {[%clk 0:01:56]} 16. Nd2 {[%clk 0:02:05]}  Nc5 {[%clk 0:01:48]} 17. Bc2 {[%clk 0:02:04]}  a5 {[%clk 0:01:46]} 18. b3 {[%clk 0:02:01]}  Bg5 {[%clk 0:01:38]} 19. Bxg5 {[%clk 0:01:49]}  Qxg5 {[%clk 0:01:38]} 20. Nf3 {[%clk 0:01:49]}  Qe3 {[%clk 0:01:24]} 21. Nh2 {[%clk 0:01:30]}  Nxe4 {[%clk 0:01:16]} 22. Ng4 {[%clk 0:01:29]}  Ng3+ {[%clk 0:01:15]} 23. Nxg3 {[%clk 0:01:30]}  Qxg3 {[%clk 0:01:11]} 24. Rf3 {[%clk 0:01:30]}  Nd4 {[%clk 0:01:11]} 25. Rxg3 {[%clk 0:01:30]}  hxg3 {[%clk 0:01:12]} 26. Kg1 {[%clk 0:01:29]}  O-O-O {[%clk 0:00:48]} 27. Ne3 {[%clk 0:01:27]}  Rh4 {[%clk 0:00:37]} 28. Nd5 {[%clk 0:01:20]}  Bxd5 {[%clk 0:00:35]} 29. cxd5 {[%clk 0:01:20]}  Rf4 {[%clk 0:00:23]} 30. Bd3 {[%clk 0:01:15]}  Kd7 {[%clk 0:00:21]} 31. Rc1 {[%clk 0:01:13]}  Ke7 {[%clk 0:00:19]} 32. Qe1 {[%clk 0:01:10]}  Rf2 {[%clk 0:00:18]} 33. Qe3 {[%clk 0:01:09]}  Rxa2 {[%clk 0:00:13]} 34. Qg5+ {[%clk 0:01:07]}  Kd7 {[%clk 0:00:11]} 35. Qxg7 {[%clk 0:01:04]} 1-0


[Site "https://www.chess.com"]

[Event "Titled Tuesday Blitz May 24 Early 2022"]
[White "Karolczuk, Iwo"]
[Black "Xiong, Jeffery"]
[WhiteFideId "21816972"]
[BlackFideId "2047640"]
[WhiteElo "2258"]
[BlackElo "2727"]
[Result "0-1"]
[Round "02"]
[TimeControl "180+1"]
[Date "2022.05.24"]
[WhiteClock "0:00:06"]
[BlackClock "0:00:24"]

1. d4 {[%clk 0:03:00]}  d5 {[%clk 0:02:59]} 2. Nf3 {[%clk 0:02:59]}  Nf6 {[%clk 0:02:59]} 3. c4 {[%clk 0:02:57]}  e6 {[%clk 0:02:59]} 4. e3 {[%clk 0:02:57]}  b6 {[%clk 0:02:52]} 5. cxd5 {[%clk 0:02:55]}  exd5 {[%clk 0:02:52]} 6. b3 {[%clk 0:02:53]}  Bd6 {[%clk 0:02:50]} 7. Ba3 {[%clk 0:02:53]}  O-O {[%clk 0:02:39]} 8. Bxd6 {[%clk 0:02:52]}  Qxd6 {[%clk 0:02:40]} 9. Nc3 {[%clk 0:02:50]}  Bf5 {[%clk 0:02:36]} 10. Bd3 {[%clk 0:02:49]}  Bxd3 {[%clk 0:02:36]} 11. Qxd3 {[%clk 0:02:50]}  c6 {[%clk 0:02:32]} 12. O-O {[%clk 0:02:50]}  Nbd7 {[%clk 0:02:32]} 13. Rac1 {[%clk 0:02:50]}  Rfe8 {[%clk 0:02:32]} 14. Rfd1 {[%clk 0:02:50]}  Ne4 {[%clk 0:02:31]} 15. Qc2 {[%clk 0:02:38]}  Rac8 {[%clk 0:02:20]} 16. Nxe4 {[%clk 0:02:18]}  Rxe4 {[%clk 0:02:21]} 17. Rd3 {[%clk 0:02:07]}  h6 {[%clk 0:02:17]} 18. Rc3 {[%clk 0:02:06]}  Re6 {[%clk 0:02:18]} 19. Qd3 {[%clk 0:02:03]}  Nf6 {[%clk 0:02:15]} 20. Ne5 {[%clk 0:01:57]}  c5 {[%clk 0:02:15]} 21. R3c2 {[%clk 0:01:39]}  Rce8 {[%clk 0:02:11]} 22. Nf3 {[%clk 0:01:32]}  Ne4 {[%clk 0:02:05]} 23. dxc5 {[%clk 0:01:31]}  bxc5 {[%clk 0:02:06]} 24. Rd1 {[%clk 0:01:30]}  Rd8 {[%clk 0:02:02]} 25. Qb5 {[%clk 0:01:28]}  Rf6 {[%clk 0:01:58]} 26. Qb7 {[%clk 0:01:15]}  a6 {[%clk 0:01:36]} 27. Rc4 {[%clk 0:01:02]}  Re6 {[%clk 0:00:24]} 28. Ra4 {[%clk 0:00:07]}  Nc3 {[%clk 0:00:24]} 29. Re1 {[%clk 0:00:05]}  Nxa4 {[%clk 0:00:24]} 30. bxa4 {[%clk 0:00:06]}  Rb8 {[%clk 0:00:24]} 31. Qa7 {[%clk 0:00:06]}  Re7 {[%clk 0:00:24]} 0-1


[Site "https://www.chess.com"]

[Event "Titled Tuesday Blitz May 24 Early 2022"]
[White "Keller, Peter"]
[Black "Bryakin, Mikhail"]
[WhiteFideId "1272105"]
[BlackFideId "4165314"]
[WhiteElo "2275"]
[BlackElo "2417"]
[Result "0-1"]
[Round "02"]
[TimeControl "180+1"]
[Date "2022.05.25"]
[WhiteClock "0:00:35"]
[BlackClock "0:02:03"]

1. e4 {[%clk 0:02:54]}  e5 {[%clk 0:03:00]} 2. Nf3 {[%clk 0:02:54]}  d5 {[%clk 0:03:00]} 3. exd5 {[%clk 0:02:51]}  e4 {[%clk 0:03:01]} 4. Qe2 {[%clk 0:02:24]}  Nf6 {[%clk 0:03:00]} 5. Nc3 {[%clk 0:02:24]}  Bb4 {[%clk 0:02:54]} 6. Nxe4 {[%clk 0:02:23]}  O-O {[%clk 0:02:54]} 7. Nxf6+ {[%clk 0:02:06]}  Qxf6 {[%clk 0:02:55]} 8. c3 {[%clk 0:02:03]}  Bd7 {[%clk 0:02:52]} 9. d4 {[%clk 0:01:56]}  Re8 {[%clk 0:02:44]} 10. Be3 {[%clk 0:01:44]}  Bf8 {[%clk 0:02:43]} 11. Qd2 {[%clk 0:01:27]}  c6 {[%clk 0:02:39]} 12. dxc6 {[%clk 0:01:25]}  Bxc6 {[%clk 0:02:40]} 13. Be2 {[%clk 0:01:25]}  Nd7 {[%clk 0:02:34]} 14. O-O {[%clk 0:01:25]}  Bd6 {[%clk 0:02:34]} 15. h3 {[%clk 0:01:18]}  b6 {[%clk 0:02:31]} 16. c4 {[%clk 0:01:17]}  Be4 {[%clk 0:02:30]} 17. Rfe1 {[%clk 0:01:15]}  Qg6 {[%clk 0:02:27]} 18. Rac1 {[%clk 0:01:14]}  Rad8 {[%clk 0:02:23]} 19. b4 {[%clk 0:01:13]}  Bb8 {[%clk 0:02:22]} 20. Qc3 {[%clk 0:01:10]}  Qd6 {[%clk 0:02:12]} 21. c5 {[%clk 0:01:09]}  Qc7 {[%clk 0:02:10]} 22. Ne5 {[%clk 0:00:45]}  Nf6 {[%clk 0:02:07]} 23. Bf4 {[%clk 0:00:42]}  Nd5 {[%clk 0:02:04]} 24. Qe3 {[%clk 0:00:35]}  Nxe3 {[%clk 0:02:03]} 0-1


[Site "https://www.chess.com"]

[Event "Titled Tuesday Blitz May 24 Early 2022"]
[White "Keymer, Vincent"]
[Black "Perez Gormaz, Matias"]
[WhiteFideId "12940690"]
[BlackFideId "3406342"]
[WhiteElo "2548"]
[BlackElo "2341"]
[Result "1-0"]
[Round "02"]
[TimeControl "180+1"]
[Date "2022.05.24"]
[WhiteClock "0:00:08"]
[BlackClock "0:00:03"]

1. Nf3 {[%clk 0:03:00]}  d5 {[%clk 0:03:00]} 2. e3 {[%clk 0:03:00]}  Nf6 {[%clk 0:02:59]} 3. c4 {[%clk 0:03:00]}  e6 {[%clk 0:02:59]} 4. Nc3 {[%clk 0:03:01]}  a6 {[%clk 0:03:00]} 5. b3 {[%clk 0:03:01]}  b6 {[%clk 0:03:00]} 6. g3 {[%clk 0:02:59]}  Bb7 {[%clk 0:02:59]} 7. Bg2 {[%clk 0:03:00]}  Be7 {[%clk 0:03:00]} 8. Bb2 {[%clk 0:03:00]}  O-O {[%clk 0:03:00]} 9. O-O {[%clk 0:03:01]}  Nbd7 {[%clk 0:02:58]} 10. Qe2 {[%clk 0:03:01]}  c5 {[%clk 0:02:53]} 11. Rfd1 {[%clk 0:02:48]}  Qc7 {[%clk 0:02:52]} 12. Rac1 {[%clk 0:02:46]}  Rac8 {[%clk 0:02:49]} 13. cxd5 {[%clk 0:02:42]}  Nxd5 {[%clk 0:02:45]} 14. Nxd5 {[%clk 0:02:40]}  Bxd5 {[%clk 0:02:44]} 15. e4 {[%clk 0:02:36]}  Bb7 {[%clk 0:02:41]} 16. d4 {[%clk 0:02:37]}  Qb8 {[%clk 0:02:36]} 17. d5 {[%clk 0:02:33]}  exd5 {[%clk 0:02:37]} 18. exd5 {[%clk 0:02:34]}  Rfe8 {[%clk 0:02:35]} 19. Qc2 {[%clk 0:01:54]}  Rcd8 {[%clk 0:02:13]} 20. h4 {[%clk 0:01:38]}  Bd6 {[%clk 0:02:06]} 21. Ng5 {[%clk 0:01:28]}  Nf8 {[%clk 0:02:06]} 22. Ne4 {[%clk 0:01:27]}  Be5 {[%clk 0:01:59]} 23. Bxe5 {[%clk 0:01:19]}  Qxe5 {[%clk 0:01:48]} 24. Nc3 {[%clk 0:01:18]}  Qd6 {[%clk 0:01:16]} 25. Rd2 {[%clk 0:01:10]}  Nd7 {[%clk 0:01:13]} 26. Ne4 {[%clk 0:01:01]}  Qg6 {[%clk 0:01:10]} 27. Re1 {[%clk 0:00:45]}  Nf6 {[%clk 0:00:34]} 28. Rde2 {[%clk 0:00:27]}  Nxd5 {[%clk 0:00:25]} 29. Nxc5 {[%clk 0:00:25]}  Rxe2 {[%clk 0:00:22]} 30. Qxe2 {[%clk 0:00:25]}  Bc6 {[%clk 0:00:12]} 31. Nxa6 {[%clk 0:00:16]}  h6 {[%clk 0:00:10]} 32. Qc4 {[%clk 0:00:11]}  Bb7 {[%clk 0:00:08]} 33. Nb4 {[%clk 0:00:10]}  Nxb4 {[%clk 0:00:08]} 34. Qxb4 {[%clk 0:00:09]}  Bxg2 {[%clk 0:00:07]} 35. Kxg2 {[%clk 0:00:10]}  Qc6+ {[%clk 0:00:08]} 36. Qe4 {[%clk 0:00:11]}  Qc5 {[%clk 0:00:03]} 37. a4 {[%clk 0:00:08]}  Rd2 {[%clk 0:00:03]} 38. Qf3 {[%clk 0:00:08]} 1-0


[Site "https://www.chess.com"]

[Event "Titled Tuesday Blitz May 24 Early 2022"]
[White "Khamdamova, Afruza"]
[Black "Dimitrov, Atanas"]
[WhiteFideId "14210444"]
[BlackFideId "2901315"]
[WhiteElo "1660"]
[BlackElo "2690"]
[Result "0-1"]
[Round "02"]
[TimeControl "180+1"]
[Date "2022.05.25"]
[WhiteClock "0:01:02"]
[BlackClock "0:00:37"]

1. e4 {[%clk 0:03:00]}  c5 {[%clk 0:02:59]} 2. Nf3 {[%clk 0:03:01]}  d6 {[%clk 0:03:00]} 3. d4 {[%clk 0:03:01]}  cxd4 {[%clk 0:03:01]} 4. Nxd4 {[%clk 0:03:01]}  Nf6 {[%clk 0:03:01]} 5. Nc3 {[%clk 0:03:00]}  g6 {[%clk 0:03:01]} 6. Be3 {[%clk 0:03:00]}  Bg7 {[%clk 0:03:01]} 7. f3 {[%clk 0:03:00]}  Nc6 {[%clk 0:03:01]} 8. Qd2 {[%clk 0:02:59]}  Bd7 {[%clk 0:03:01]} 9. Bc4 {[%clk 0:02:58]}  Rc8 {[%clk 0:03:02]} 10. Bb3 {[%clk 0:02:58]}  Ne5 {[%clk 0:03:02]} 11. O-O-O {[%clk 0:02:58]}  O-O {[%clk 0:03:01]} 12. Bh6 {[%clk 0:02:56]}  Nc4 {[%clk 0:03:01]} 13. Bxc4 {[%clk 0:02:55]}  Rxc4 {[%clk 0:03:01]} 14. Bxg7 {[%clk 0:02:55]}  Kxg7 {[%clk 0:03:02]} 15. h4 {[%clk 0:02:54]}  h5 {[%clk 0:03:02]} 16. g4 {[%clk 0:02:41]}  hxg4 {[%clk 0:02:39]} 17. h5 {[%clk 0:02:41]}  e5 {[%clk 0:02:22]} 18. hxg6 {[%clk 0:02:32]}  Rh8 {[%clk 0:02:20]} 19. Nf5+ {[%clk 0:02:18]}  Bxf5 {[%clk 0:02:19]} 20. exf5 {[%clk 0:02:18]}  Rf4 {[%clk 0:01:42]} 21. fxg4 {[%clk 0:02:04]}  Nxg4 {[%clk 0:01:37]} 22. gxf7 {[%clk 0:01:49]}  Rxh1 {[%clk 0:00:58]} 23. Rxh1 {[%clk 0:01:49]}  Rf2 {[%clk 0:00:54]} 24. Qd5 {[%clk 0:01:17]}  Qg5+ {[%clk 0:00:54]} 25. Kb1 {[%clk 0:01:16]}  Qxf5 {[%clk 0:00:38]} 26. Ne4 {[%clk 0:01:02]}  Rf1+ {[%clk 0:00:37]} 0-1


[Site "https://www.chess.com"]

[Event "Titled Tuesday Blitz May 24 Early 2022"]
[White "Korchmar, Vasiliy"]
[Black "Melikhov, Evgeny V."]
[WhiteFideId "24131750"]
[BlackFideId "4122046"]
[WhiteElo "2370"]
[BlackElo "1931"]
[Result "1-0"]
[Round "02"]
[TimeControl "180+1"]
[Date "2022.05.25"]
[WhiteClock "0:00:12"]
[BlackClock "0:00:04"]

1. e4 {[%clk 0:03:00]}  e5 {[%clk 0:02:58]} 2. Nf3 {[%clk 0:02:59]}  Nc6 {[%clk 0:02:58]} 3. Nc3 {[%clk 0:02:59]}  Nf6 {[%clk 0:02:57]} 4. h3 {[%clk 0:02:59]}  d5 {[%clk 0:02:55]} 5. exd5 {[%clk 0:02:59]}  Nxd5 {[%clk 0:02:56]} 6. Bb5 {[%clk 0:03:00]}  Nxc3 {[%clk 0:02:37]} 7. bxc3 {[%clk 0:03:00]}  Bd6 {[%clk 0:02:36]} 8. d4 {[%clk 0:02:50]}  exd4 {[%clk 0:02:30]} 9. cxd4 {[%clk 0:02:51]}  O-O {[%clk 0:02:30]} 10. O-O {[%clk 0:02:52]}  Nb4 {[%clk 0:02:12]} 11. c3 {[%clk 0:02:43]}  a6 {[%clk 0:02:04]} 12. Bc4 {[%clk 0:02:37]}  b5 {[%clk 0:01:58]} 13. Bb3 {[%clk 0:02:36]}  Nc6 {[%clk 0:01:56]} 14. Bg5 {[%clk 0:02:27]}  Be7 {[%clk 0:01:47]} 15. Qd2 {[%clk 0:02:20]}  Bxg5 {[%clk 0:01:46]} 16. Nxg5 {[%clk 0:02:21]}  Bf5 {[%clk 0:01:39]} 17. Qf4 {[%clk 0:02:06]}  Bg6 {[%clk 0:01:34]} 18. a4 {[%clk 0:01:57]}  Na5 {[%clk 0:01:29]} 19. Ba2 {[%clk 0:01:57]}  Qd6 {[%clk 0:01:25]} 20. Qh4 {[%clk 0:01:52]}  h6 {[%clk 0:01:22]} 21. Nf3 {[%clk 0:01:52]}  b4 {[%clk 0:01:04]} 22. cxb4 {[%clk 0:01:46]}  Qxb4 {[%clk 0:01:03]} 23. Ne5 {[%clk 0:01:46]}  Bc2 {[%clk 0:00:57]} 24. Rfc1 {[%clk 0:01:25]}  Nb3 {[%clk 0:00:48]} 25. Rxc2 {[%clk 0:01:10]}  Nxa1 {[%clk 0:00:47]} 26. Rxc7 {[%clk 0:01:10]}  Nb3 {[%clk 0:00:42]} 27. Rc4 {[%clk 0:00:48]}  Qe1+ {[%clk 0:00:39]} 28. Kh2 {[%clk 0:00:47]}  Rab8 {[%clk 0:00:40]} 29. Bxb3 {[%clk 0:00:26]}  Rxb3 {[%clk 0:00:39]} 30. Qf4 {[%clk 0:00:26]}  Rb1 {[%clk 0:00:34]} 31. Rc7 {[%clk 0:00:21]}  Qg1+ {[%clk 0:00:32]} 32. Kg3 {[%clk 0:00:21]}  Rb3+ {[%clk 0:00:31]} 33. Nf3 {[%clk 0:00:15]}  Rb2 {[%clk 0:00:24]} 34. Ne5 {[%clk 0:00:14]}  Rb3+ {[%clk 0:00:23]} 35. Nf3 {[%clk 0:00:15]}  f6 {[%clk 0:00:16]} 36. Qg4 {[%clk 0:00:12]}  Rf7 {[%clk 0:00:07]} 37. Qe6 {[%clk 0:00:11]}  Rxf3+ {[%clk 0:00:04]} 38. Kxf3 {[%clk 0:00:12]}  Qd1+ {[%clk 0:00:04]} 39. Kg3 {[%clk 0:00:12]}  Qd3+ {[%clk 0:00:04]} 40. Kh2 {[%clk 0:00:13]}  Qg6 {[%clk 0:00:04]} 41. d5 {[%clk 0:00:12]} 1-0


[Site "https://www.chess.com"]

[Event "Titled Tuesday Blitz May 24 Early 2022"]
[White "Kovalev, Vladislav"]
[Black "Taichman, Ori"]
[WhiteFideId "13504398"]
[BlackFideId "2804069"]
[WhiteElo "2530"]
[BlackElo "2227"]
[Result "0-1"]
[Round "02"]
[TimeControl "180+1"]
[Date "2022.05.24"]
[WhiteClock "0:00:01"]
[BlackClock "0:00:11"]

1. e4 {[%clk 0:03:00]}  c5 {[%clk 0:02:59]} 2. Nf3 {[%clk 0:03:01]}  Nc6 {[%clk 0:02:58]} 3. Bb5 {[%clk 0:03:01]}  d6 {[%clk 0:02:58]} 4. d4 {[%clk 0:02:57]}  cxd4 {[%clk 0:02:58]} 5. Qxd4 {[%clk 0:02:58]}  Bd7 {[%clk 0:02:58]} 6. Bxc6 {[%clk 0:02:58]}  Bxc6 {[%clk 0:02:58]} 7. c4 {[%clk 0:02:52]}  f5 {[%clk 0:02:58]} 8. exf5 {[%clk 0:02:48]}  Qa5+ {[%clk 0:02:56]} 9. Nc3 {[%clk 0:02:46]}  Qxf5 {[%clk 0:02:56]} 10. Be3 {[%clk 0:02:35]}  Nf6 {[%clk 0:02:43]} 11. O-O-O {[%clk 0:02:31]}  e5 {[%clk 0:02:37]} 12. Qd2 {[%clk 0:02:27]}  Qg4 {[%clk 0:02:12]} 13. Qe2 {[%clk 0:02:19]}  Qxg2 {[%clk 0:02:11]} 14. Nd5 {[%clk 0:02:09]}  Bxd5 {[%clk 0:02:07]} 15. cxd5 {[%clk 0:02:10]}  Qg6 {[%clk 0:02:06]} 16. Qb5+ {[%clk 0:02:04]}  Kd8 {[%clk 0:01:57]} 17. Qxb7 {[%clk 0:01:32]}  Rc8+ {[%clk 0:01:56]} 18. Kd2 {[%clk 0:01:32]}  Rc2+ {[%clk 0:01:04]} 19. Ke1 {[%clk 0:01:32]}  Qg2 {[%clk 0:01:05]} 20. Qb8+ {[%clk 0:01:04]}  Ke7 {[%clk 0:01:04]} 21. Qxa7+ {[%clk 0:00:53]}  Nd7 {[%clk 0:01:02]} 22. Rg1 {[%clk 0:00:07]}  Qxf3 {[%clk 0:00:53]} 23. Qa6 {[%clk 0:00:08]}  Kf7 {[%clk 0:00:30]} 24. a4 {[%clk 0:00:03]}  Be7 {[%clk 0:00:29]} 25. Qd3 {[%clk 0:00:04]}  Rhc8 {[%clk 0:00:23]} 26. Rxg7+ {[%clk 0:00:04]}  Kf8 {[%clk 0:00:16]} 27. Rxe7 {[%clk 0:00:04]}  e4 {[%clk 0:00:13]} 28. Qd4 {[%clk 0:00:02]}  Kxe7 {[%clk 0:00:13]} 29. Bg5+ {[%clk 0:00:02]}  Kf7 {[%clk 0:00:12]} 30. Bd2 {[%clk 0:00:01]}  Ne5 {[%clk 0:00:11]} 0-1


[Site "https://www.chess.com"]

[Event "Titled Tuesday Blitz May 24 Early 2022"]
[White "Kuderinov, Kirill"]
[Black "Sadubayev, Airat"]
[WhiteFideId "13701568"]
[BlackFideId "13713264"]
[WhiteElo "2432"]
[BlackElo "2234"]
[Result "1-0"]
[Round "02"]
[TimeControl "180+1"]
[Date "2022.05.25"]
[WhiteClock "0:00:29"]
[BlackClock "0:00:31"]

1. c4 {[%clk 0:02:56]}  c6 {[%clk 0:02:59]} 2. Nc3 {[%clk 0:02:56]}  d5 {[%clk 0:02:58]} 3. cxd5 {[%clk 0:02:57]}  cxd5 {[%clk 0:02:58]} 4. d4 {[%clk 0:02:58]}  Nf6 {[%clk 0:02:58]} 5. Bf4 {[%clk 0:02:58]}  Nc6 {[%clk 0:02:58]} 6. Nf3 {[%clk 0:02:57]}  Bf5 {[%clk 0:02:57]} 7. e3 {[%clk 0:02:57]}  e6 {[%clk 0:02:57]} 8. Bd3 {[%clk 0:02:57]}  Bxd3 {[%clk 0:02:56]} 9. Qxd3 {[%clk 0:02:58]}  Bd6 {[%clk 0:02:56]} 10. Bxd6 {[%clk 0:02:58]}  Qxd6 {[%clk 0:02:55]} 11. O-O {[%clk 0:02:59]}  O-O {[%clk 0:02:53]} 12. a3 {[%clk 0:02:58]}  Nd7 {[%clk 0:02:45]} 13. Rac1 {[%clk 0:02:54]}  h6 {[%clk 0:02:40]} 14. Rfd1 {[%clk 0:02:32]}  Nb6 {[%clk 0:02:30]} 15. e4 {[%clk 0:02:28]}  dxe4 {[%clk 0:02:24]} 16. Nxe4 {[%clk 0:02:26]}  Qe7 {[%clk 0:02:22]} 17. Qe2 {[%clk 0:02:22]}  Rfd8 {[%clk 0:02:19]} 18. Ne5 {[%clk 0:02:08]}  Nxd4 {[%clk 0:02:12]} 19. Qe3 {[%clk 0:02:04]}  Nf5 {[%clk 0:01:59]} 20. Qf3 {[%clk 0:01:55]}  Rxd1+ {[%clk 0:01:53]} 21. Rxd1 {[%clk 0:01:53]}  Rd8 {[%clk 0:01:49]} 22. Ng3 {[%clk 0:01:51]}  Rxd1+ {[%clk 0:01:44]} 23. Qxd1 {[%clk 0:01:45]}  Qd6 {[%clk 0:01:43]} 24. Qe1 {[%clk 0:01:39]}  Nxg3 {[%clk 0:01:39]} 25. hxg3 {[%clk 0:01:40]}  Qd4 {[%clk 0:01:38]} 26. Qe2 {[%clk 0:01:34]}  a6 {[%clk 0:01:29]} 27. Nf3 {[%clk 0:01:29]}  Qd5 {[%clk 0:01:23]} 28. Qc2 {[%clk 0:01:26]}  Nc4 {[%clk 0:01:21]} 29. Qc3 {[%clk 0:01:22]}  b5 {[%clk 0:01:16]} 30. Kh2 {[%clk 0:00:58]}  g5 {[%clk 0:01:14]} 31. b3 {[%clk 0:00:52]}  Nd6 {[%clk 0:01:11]} 32. Qf6 {[%clk 0:00:49]}  Qf5 {[%clk 0:00:40]} 33. Qd8+ {[%clk 0:00:49]}  Kh7 {[%clk 0:00:39]} 34. Qxd6 {[%clk 0:00:49]}  Qc2 {[%clk 0:00:38]} 35. Qxa6 {[%clk 0:00:45]}  Qxb3 {[%clk 0:00:38]} 36. Qa7 {[%clk 0:00:43]}  Kg7 {[%clk 0:00:34]} 37. Ne5 {[%clk 0:00:42]}  Kf6 {[%clk 0:00:34]} 38. Nxf7 {[%clk 0:00:39]}  b4 {[%clk 0:00:32]} 39. axb4 {[%clk 0:00:37]}  Qxb4 {[%clk 0:00:33]} 40. Nxh6 {[%clk 0:00:37]}  Kg6 {[%clk 0:00:33]} 41. Ng8 {[%clk 0:00:36]}  Qf8 {[%clk 0:00:32]} 42. Ne7+ {[%clk 0:00:35]}  Kf6 {[%clk 0:00:31]} 43. Nc6 {[%clk 0:00:33]}  g4 {[%clk 0:00:31]} 44. Qd4+ {[%clk 0:00:33]}  Kg5 {[%clk 0:00:31]} 45. Qe5+ {[%clk 0:00:31]}  Kg6 {[%clk 0:00:31]} 46. Qxe6+ {[%clk 0:00:31]}  Kg5 {[%clk 0:00:31]} 47. Ne5 {[%clk 0:00:29]} 1-0


[Site "https://www.chess.com"]

[Event "Titled Tuesday Blitz May 24 Early 2022"]
[White "Lamaze, Simon"]
[Black "Hernandez Jimenez, Alexander Andres"]
[WhiteFideId "36069264"]
[BlackFideId "3900452"]
[WhiteElo "1999"]
[BlackElo "2098"]
[Result "1-0"]
[Round "02"]
[TimeControl "180+1"]
[Date "2022.05.25"]
[WhiteClock "0:01:12"]
[BlackClock "0:00:07"]

1. d4 {[%clk 0:03:00]}  Nf6 {[%clk 0:02:58]} 2. c4 {[%clk 0:03:01]}  e6 {[%clk 0:02:58]} 3. g3 {[%clk 0:03:01]}  Bb4+ {[%clk 0:02:56]} 4. Bd2 {[%clk 0:03:01]}  a5 {[%clk 0:02:55]} 5. Bg2 {[%clk 0:03:00]}  Qe7 {[%clk 0:02:52]} 6. Nf3 {[%clk 0:02:59]}  d6 {[%clk 0:02:44]} 7. Nc3 {[%clk 0:02:59]}  O-O {[%clk 0:02:41]} 8. O-O {[%clk 0:02:58]}  Nbd7 {[%clk 0:02:38]} 9. a3 {[%clk 0:02:57]}  Bxc3 {[%clk 0:02:37]} 10. Bxc3 {[%clk 0:02:58]}  e5 {[%clk 0:02:35]} 11. Qc2 {[%clk 0:02:43]}  Re8 {[%clk 0:02:29]} 12. dxe5 {[%clk 0:02:24]}  Nxe5 {[%clk 0:02:27]} 13. Nxe5 {[%clk 0:02:24]}  dxe5 {[%clk 0:02:26]} 14. b4 {[%clk 0:02:22]}  axb4 {[%clk 0:02:24]} 15. axb4 {[%clk 0:02:22]}  Rxa1 {[%clk 0:02:24]} 16. Rxa1 {[%clk 0:02:22]}  c6 {[%clk 0:02:23]} 17. Rd1 {[%clk 0:02:17]}  Bg4 {[%clk 0:02:19]} 18. h3 {[%clk 0:02:16]}  Bh5 {[%clk 0:02:18]} 19. c5 {[%clk 0:02:14]}  Bg6 {[%clk 0:02:18]} 20. Qb2 {[%clk 0:02:11]}  e4 {[%clk 0:02:00]} 21. Bxf6 {[%clk 0:02:03]}  gxf6 {[%clk 0:01:57]} 22. Rd6 {[%clk 0:02:01]}  e3 {[%clk 0:01:53]} 23. f4 {[%clk 0:02:00]}  Kg7 {[%clk 0:01:43]} 24. g4 {[%clk 0:01:53]}  Be4 {[%clk 0:01:35]} 25. g5 {[%clk 0:01:40]}  Qf8 {[%clk 0:01:09]} 26. Qxf6+ {[%clk 0:01:37]}  Kg8 {[%clk 0:01:08]} 27. Bxe4 {[%clk 0:01:36]}  Rxe4 {[%clk 0:01:07]} 28. Rd8 {[%clk 0:01:36]}  Re8 {[%clk 0:01:07]} 29. Rd7 {[%clk 0:01:35]}  Rb8 {[%clk 0:00:50]} 30. Kg2 {[%clk 0:01:22]}  Qg7 {[%clk 0:00:50]} 31. Qxg7+ {[%clk 0:01:22]}  Kxg7 {[%clk 0:00:50]} 32. Kf3 {[%clk 0:01:22]}  b6 {[%clk 0:00:48]} 33. Kxe3 {[%clk 0:01:22]}  bxc5 {[%clk 0:00:49]} 34. bxc5 {[%clk 0:01:23]}  Rb5 {[%clk 0:00:48]} 35. Kd4 {[%clk 0:01:23]}  Rb2 {[%clk 0:00:40]} 36. Re7 {[%clk 0:01:20]}  Rd2+ {[%clk 0:00:37]} 37. Kc4 {[%clk 0:01:16]}  Kg6 {[%clk 0:00:36]} 38. e4 {[%clk 0:01:14]}  Rf2 {[%clk 0:00:27]} 39. f5+ {[%clk 0:01:12]}  Kxg5 {[%clk 0:00:24]} 40. Rxf7 {[%clk 0:01:12]}  h5 {[%clk 0:00:24]} 41. Kd4 {[%clk 0:01:11]}  Rf3 {[%clk 0:00:16]} 42. Ke5 {[%clk 0:01:10]}  Rxh3 {[%clk 0:00:16]} 43. Rg7+ {[%clk 0:01:10]}  Kh6 {[%clk 0:00:16]} 44. Kf6 {[%clk 0:01:10]}  Re3 {[%clk 0:00:10]} 45. Rg6+ {[%clk 0:01:10]}  Kh7 {[%clk 0:00:10]} 46. e5 {[%clk 0:01:11]}  h4 {[%clk 0:00:08]} 47. e6 {[%clk 0:01:11]}  h3 {[%clk 0:00:07]} 48. Rg4 {[%clk 0:01:12]} 1-0


[Site "https://www.chess.com"]